fUST/lending_fUST_20250927
["ID","MTS","AMOUNT","RATE_DAILY","PERIOD"]
[387846200,1758924640170,-151.0,0.00032219,3]
[387846202,1758924640180,-233.14270402,0.00032219,3]
[387846203,1758924640189,-151.0,0.00032219,3]
[387846204,1758924640199,-210.0,0.00032244,5]
[387846205,1758924640209,-420.0,0.0003229,2]
[387846206,1758924640218,-169.62692056,0.000323,120]
[387846207,1758924640228,-2379.72343006,0.000323,120]
[387846208,1758924640237,-1839.97867143,0.000323,120]
[387846209,1758924640247,-183.28330123,0.000323,120]
[387846210,1758924640256,-160.28645206,0.000323,120]
[387846211,1758924640266,-217.99592756,0.000323,120]
[387846212,1758924640275,-233.71402077,0.000323,120]
[387846213,1758924640285,-1680.0,0.00032356,3]
[387846214,1758924640295,-500.0,0.00032404,30]
[387846215,1758924640305,-151.0,0.00032404,30]
[387846216,1758924640315,-246.56925732,0.00032404,30]
[387846217,1758924640325,-151.0,0.00032404,30]
[387846218,1758924640335,-151.0,0.00032404,30]
[387846219,1758924640344,-151.0,0.00032404,30]
[387846220,1758924640355,-151.0,0.00032493,3]
[387846221,1758924640365,-151.0,0.00032493,3]
[387846222,1758924640375,-500.0,0.0003251,5]
[387846223,1758924640385,-500.0,0.0003251,5]
[387846224,1758924640395,-500.0,0.0003251,5]
[387846225,1758924640405,-500.0,0.0003251,5]
[387846226,1758924640416,-500.0,0.0003251,5]
[387846227,1758924640426,-1000.0,0.00032521,5]
[387846228,1758924640436,-1000.0,0.00032521,5]
[387846229,1758924640450,-1000.0,0.00032521,5]
[387846230,1758924640460,-355.727614,0.00032521,5]
[387846231,1758924640470,-500.0,0.00032521,5]
[387846232,1758924640480,-1000.0,0.00032521,5]
[387846233,1758924640490,-500.0,0.00032521,5]
[387846234,1758924640500,-500.0,0.00032521,5]
[387846235,1758924640510,-500.8937754,0.00032521,5]
[387846236,1758924640520,-1000.0,0.00032521,5]
[387846237,1758924640531,-1000.0,0.00032521,5]
[387846238,1758924640541,-260.0,0.00032552,2]
[387846239,1758924640551,-500.0,0.00032594,5]
[387846240,1758924640561,-2379.72343006,0.000326,120]
[387846241,1758924640571,-1839.97867143,0.000326,120]
[387846242,1758924640581,-160.28645206,0.000326,120]
[387846243,1758924640591,-768.285551,0.00032621,5]
[387846244,1758924640601,-151.0,0.00032678,30]
[387846245,1758924640610,-151.0,0.00032678,30]
[387846246,1758924640620,-151.0,0.00032678,30]
[387846247,1758924640630,-151.0,0.00032678,30]
[387846248,1758924640639,-1525.90642558,0.00032712,5]
[387846249,1758924640649,-198.0,0.00032767,3]
[387846250,1758924640659,-151.0,0.00032767,3]
[387846251,1758924640669,-2935.03628574,0.00032776,2]
[387846252,1758924640679,-19069.9477532,0.00032867,2]
[387846253,1758924640689,-5641.84914595,0.00032867,2]
[387846254,1758924640699,-150.0,0.00032876,2]
[387846255,1758924640709,-300.0,0.00032876,2]
[387846256,1758924640719,-450.0,0.00032876,2]
[387846257,1758924640730,-600.0,0.00032876,2]
[387846258,1758924640740,-159.26782013,0.00032876,2]
[387846259,1758924640751,-873.398513,0.00032877,2]
[387846260,1758924640761,-233.71402077,0.00032877,7]
[387846261,1758924640771,-500.0,0.00032877,5]
[387846262,1758924640783,-198.0,0.00032952,30]
[387846263,1758924640793,-198.0,0.00032952,30]
[387846264,1758924640803,-222.4412413,0.00032952,30]
[387846265,1758924640814,-192.16542769,0.00032952,30]
[387846266,1758924640824,-2379.72343006,0.00033,120]
[387846267,1758924640834,-1839.97867143,0.00033,120]
[387846268,1758924640844,-245.0,0.00033041,3]
[387846269,1758924640855,-1000.0,0.00033058,5]
[387846270,1758924640865,-1000.0,0.00033058,5]
[387846271,1758924640875,-1000.74400145,0.00033058,5]
[387846272,1758924640885,-500.0,0.00033058,5]
[387846273,1758924640895,-1000.0,0.00033058,5]
[387846274,1758924640905,-512.7692454,0.00033059,7]
[387846275,1758924640998,-505.04014538,0.00033068,5]
[387846276,1758924641009,-1500.0,0.00033068,5]
[387846277,1758924641019,-165.94254313,0.00033068,5]
[387846278,1758924641029,-1500.0,0.00033068,5]
[387846279,1758924641039,-396.00188516,0.00033068,5]
[387846280,1758924641049,-502.11098642,0.00033068,5]
[387846281,1758924641059,-501.0381757,0.00033073,5]
[387846282,1758924641069,-500.0,0.00033073,5]
[387846283,1758924641079,-500.0,0.00033073,5]
[387846284,1758924641090,-556.87096672,0.00033073,5]
[387846285,1758924641099,-360.0,0.000331,2]
[387846286,1758924641109,-500.0,0.00033146,5]
[387846287,1758924641118,-502.97187597,0.00033146,5]
[387846288,1758924641128,-379.44866789,0.00033147,19]
[387846289,1758924641138,-500.0,0.00033151,5]
[387846290,1758924641148,-810.66,0.00033197,3]
[387846291,1758924641158,-405.32,0.00033197,3]
[387846292,1758924641169,-165.66239394,0.000332,117]
[387846293,1758924641179,-2379.72343006,0.000333,120]
[387846294,1758924641189,-1839.97867143,0.000333,120]
[387846295,1758924641202,-490.36420006,0.00033304,2]
[387846296,1758924641212,-3242.62,0.00033315,3]
[387846297,1758924641226,-1621.3,0.00033315,3]
[387846298,1758924641236,-500.0,0.00033425,5]
[387846299,1758924641249,-6959.35,0.000335,14]
[387846300,1758924641259,-518.50445046,0.00033575,2]
[387846301,1758924641268,-443.91030647,0.00033575,2]
[387846302,1758924641278,-19069.9477532,0.00033596,2]
[387846303,1758924641288,-5641.84914595,0.00033596,2]
[387846304,1758924641299,-2379.72343006,0.000336,120]
[387846305,1758924641308,-508.2835672,0.00033606,5]
[387846306,1758924641318,-1500.0,0.00033606,5]
[387846307,1758924641328,-167.76495872,0.00033606,5]
[387846308,1758924641338,-2000.0,0.00033616,5]
[387846309,1758924641348,-987.99569818,0.00033616,5]
[387846310,1758924641357,-1000.0,0.00033621,5]
[387846311,1758924641367,-1000.0,0.00033621,5]
[387846312,1758924641377,-460.0,0.00033648,2]
[387846313,1758924641387,-500.0,0.00033699,5]
[387846314,1758924641397,-501.74999125,0.00033736,5]
[387846315,1758924641408,-1160.00591283,0.0003374,2]
[387846316,1758924641418,-168.0,0.00033745,2]
[387846317,1758924641428,-500.0,0.00033755,7]
[387846318,1758924641440,-500.0,0.00033868,5]
[387846319,1758924641452,-500.0,0.00033868,5]
[387846320,1758924641462,-500.0,0.00033868,5]
[387846321,1758924641472,-477.2589894,0.00033973,5]
[387846322,1758924641481,-2379.72343006,0.00034,120]
[387846324,1758924641492,-168.0,0.00034006,2]
[387846325,1758924641503,-5000.0,0.00034041,4]
[387846327,1758924641513,-2000.0,0.00034154,5]
[387846328,1758924641524,-268.49632641,0.00034164,5]
[387846329,1758924641534,-1500.0,0.00034168,5]
[387846330,1758924641544,-894.87367068,0.00034168,5]
[387846331,1758924641553,-560.0,0.00034196,2]
[387846332,1758924641563,-168.0,0.00034287,2]
[387846333,1758924641573,-2379.72343006,0.000343,120]
[387846334,1758924641583,-1055.32207646,0.00034306,2]
[387846335,1758924641593,-168.0,0.00034351,2]
[387846336,1758924641603,-1000.0,0.00034416,5]
[387846337,1758924641613,-1000.0,0.00034416,5]
[387846338,1758924641623,-1000.0,0.00034416,5]
[387846339,1758924641633,-19069.9477532,0.00034538,2]
[387846340,1758924641643,-5641.84914595,0.00034538,2]
[387846341,1758924641654,-1000.0,0.00034548,2]
[387846342,1758924641664,-1000.0,0.00034548,2]
[387846343,1758924641675,-1000.0,0.00034548,2]
[387846345,1758924641685,-1000.0,0.00034548,2]
[387846346,1758924641695,-1000.0,0.00034548,2]
[387846348,1758924641705,-1000.0,0.00034548,2]
[387846349,1758924641716,-1000.0,0.00034548,2]
[387846350,1758924641726,-350.0,0.00034548,2]
[387846351,1758924641736,-1000.0,0.00034548,2]
[387846352,1758924641746,-343.65648943,0.00034548,2]
[387846354,1758924641756,-1000.0,0.00034548,2]
[387846356,1758924641766,-1000.0,0.00034548,2]
[387846357,1758924641776,-1000.0,0.00034548,2]
[387846359,1758924641786,-151.0,0.00034548,2]
[387846360,1758924641795,-1000.0,0.00034548,2]
[387846361,1758924641805,-1000.0,0.00034548,2]
[387846363,1758924641815,-500.0,0.00034548,2]
[387846365,1758924641825,-1000.0,0.00034548,2]
[387846367,1758924641835,-1000.0,0.00034548,2]
[387846368,1758924641845,-500.0,0.00034548,2]
[387846369,1758924641855,-1000.0,0.00034548,2]
[387846370,1758924641865,-1000.0,0.00034548,2]
[387846371,1758924641875,-500.0,0.00034548,2]
[387846372,1758924641884,-1000.0,0.00034548,2]
[387846373,1758924641894,-1000.0,0.00034548,2]
[387846374,1758924641903,-500.0,0.00034548,2]
[387846375,1758924641913,-1000.0,0.00034548,2]
[387846377,1758924641922,-1000.0,0.00034548,2]
[387846378,1758924641931,-500.0,0.00034548,2]
[387846379,1758924641941,-1000.0,0.00034548,2]
[387846380,1758924641951,-1000.0,0.00034548,2]
[387846381,1758924641960,-500.0,0.00034548,2]
[387846382,1758924641969,-1000.0,0.00034548,2]
[387846383,1758924641979,-500.0,0.00034548,2]
[387846384,1758924641988,-1000.0,0.00034548,2]
[387846385,1758924641999,-500.0,0.00034548,2]
[387846387,1758924642009,-1000.0,0.00034548,2]
[387846388,1758924642019,-500.0,0.00034548,2]
[387846389,1758924642029,-1000.0,0.00034548,2]
[387846390,1758924642039,-500.0,0.00034548,2]
[387846391,1758924642048,-1000.0,0.00034548,2]
[387846392,1758924642058,-500.0,0.00034548,2]
[387846393,1758924642067,-1000.0,0.00034548,2]
[387846394,1758924642078,-500.0,0.00034548,2]
[387846395,1758924642087,-1000.0,0.00034548,2]
[387846396,1758924642096,-1000.0,0.00034548,2]
[387846397,1758924642106,-500.0,0.00034548,2]
[387846398,1758924642115,-1000.0,0.00034548,2]
[387846399,1758924642124,-1003.12527388,0.00034548,2]
[387846400,1758924642134,-182.98365671,0.00034548,2]
[387846401,1758924642144,-635.0,0.00034549,2]
[387846402,1758924642154,-500.0,0.00034573,5]
[387846403,1758924642164,-500.0,0.00034573,5]
[387846404,1758924642174,-150.0,0.00034573,5]
[387846405,1758924642183,-500.0,0.00034611,5]
[387846406,1758924642193,-500.0,0.00034611,5]
[387846407,1758924642203,-511.97124642,0.00034611,5]
[387846408,1758924642213,-500.0,0.00034611,5]
[387846409,1758924642222,-379.44866789,0.00034619,23]
[387846410,1758924642232,-509.74174054,0.00034677,4]
[387846411,1758924642241,-2379.72343006,0.000347,120]
[387846412,1758924642251,-6959.35,0.000347,14]
[387846413,1758924642262,-19069.9477532,0.00034706,2]
[387846414,1758924642273,-5641.84914595,0.00034706,2]
[387846415,1758924642283,-240.0,0.00034712,2]
[387846416,1758924642373,-2000.0,0.00034716,5]
[387846417,1758924642383,-500.0,0.00034721,7]
[387846418,1758924642393,-660.0,0.00034744,2]
[387846419,1758924642403,-587.0,0.00034803,2]
[387846420,1758924642413,-156.96730782,0.00034889,14]
[387846421,1758924642423,-379.60760016,0.00034964,5]
[387846422,1758924642433,-1500.0,0.00034964,5]
[387846423,1758924642447,-1504.06987382,0.00034964,5]
[387846424,1758924642457,-2379.72343006,0.00035,120]
[387846425,1758924642467,-412.0,0.00035025,3]
[387846426,1758924642477,-199.20500054,0.00035121,5]
[387846427,1758924642487,-1000.0,0.00035121,5]
[387846428,1758924642497,-250.54343057,0.00035121,5]
[387846429,1758924642507,-500.0,0.00035126,30]
[387846430,1758924642517,-241.0,0.00035148,120]
[387846431,1758924642527,-1000.0,0.00035158,5]
[387846432,1758924642537,-1000.0,0.00035158,5]
[387846433,1758924642547,-1004.37349584,0.00035158,5]
[387846434,1758924642558,-151.0,0.000352,13]
[387846435,1758924642569,-168.0,0.00035214,2]
[387846437,1758924642579,-155.0,0.00035244,2]
[387846438,1758924642588,-241.0,0.00035245,2]
[387846439,1758924642598,-2500.0,0.00035264,5]
[387846440,1758924642608,-760.0,0.00035292,2]
[387846441,1758924642618,-651.0,0.000353,2]
[387846442,1758924642629,-240.0,0.00035303,2]
[387846443,1758924642638,-4587.0,0.00035331,2]
[387846444,1758924642649,-500.0,0.00035342,30]
[387846445,1758924642659,-500.0,0.00035402,30]
[387846446,1758924642670,-3629.78030656,0.000355,20]
[387846447,1758924642680,-233.71402077,0.000355,3]
[387846448,1758924642692,-2000.0,0.00035512,5]
[387846449,1758924642702,-500.0,0.00035581,30]
[387846450,1758924642715,-151.0,0.000356,20]
[387846451,1758924642725,-168.0,0.00035605,2]
[387846452,1758924642735,-1160.00591283,0.00035607,2]
[387846453,1758924642746,-999.0,0.00035616,120]
[387846454,1758924642757,-184.53127817,0.00035668,5]
[387846455,1758924642767,-240.0,0.0003567,2]
[387846456,1758924642777,-168.0,0.00035681,2]
[387846457,1758924642788,-1500.0,0.00035706,5]
[387846458,1758924642800,-1500.0,0.00035706,5]
[387846459,1758924642814,-153.0,0.00035713,30]
[387846460,1758924642824,-153.0,0.00035713,30]
[387846461,1758924642834,-153.0,0.00035713,30]
[387846462,1758924642844,-153.0,0.00035713,30]
[387846463,1758924642854,-153.0,0.00035713,30]
[387846464,1758924642865,-153.0,0.00035713,30]
[387846465,1758924642875,-153.0,0.00035713,30]
[387846466,1758924642885,-153.0,0.00035713,30]
[387846467,1758924642897,-153.0,0.00035713,30]
[387846468,1758924642906,-153.0,0.00035713,30]
[387846469,1758924642916,-153.0,0.00035713,30]
[387846470,1758924642926,-153.0,0.00035733,30]
[387846471,1758924642936,-153.0,0.00035733,30]
[387846472,1758924642946,-153.0,0.00035733,30]
[387846473,1758924642955,-153.0,0.00035733,30]
[387846474,1758924642965,-168.0,0.00035739,2]
[387846475,1758924642975,-186.15,0.0003579,30]
[387846476,1758924642985,-172.99,0.0003579,30]
[387846477,1758924643002,-3000.0,0.00035812,5]
[387846478,1758924643023,-860.0,0.0003584,2]
[387846479,1758924643042,-19069.9477532,0.0003589,3]
[387846480,1758924643066,-5641.84914595,0.0003589,3]
[387846481,1758924643088,-6959.35,0.000359,14]
[387846482,1758924643107,-5000.0,0.00036,40]
[387846483,1758924643126,-244.72668916,0.00036,30]
[387846484,1758924643141,-2038.94376837,0.00036,120]
[387846485,1758924643159,-500.0,0.00036041,30]
[387846486,1758924643180,-1915.61377862,0.0003606,5]
[387846487,1758924643200,-379.44866789,0.00036091,26]
[387846488,1758924643213,-240.0,0.00036115,2]
[387846489,1758924643233,-165.66239392,0.00036173,120]
[387846490,1758924643247,-500.0,0.00036205,30]
[387846491,1758924643264,-203.0754492,0.0003621,2]
[387846492,1758924643279,-500.0,0.00036217,30]
[387846493,1758924643293,-264.14407942,0.0003624,2]
[387846494,1758924643311,-1880.77396067,0.00036254,5]
[387846495,1758924643326,-2000.0,0.00036254,5]
[387846496,1758924643342,-240.0,0.00036274,7]
[387846497,1758924643359,-2935.03628573,0.00036338,2]
[387846498,1758924643375,-902.21402296,0.0003636,5]
[387846499,1758924643390,-960.0,0.00036388,2]
[387846500,1758924643405,-500.0,0.00036418,30]
[387846501,1758924643421,-168.0,0.00036431,2]
[387846502,1758924643437,-999.0,0.00036438,120]
[387846503,1758924643457,-500.0,0.00036509,30]
[387846505,1758924643474,-1055.32207646,0.00036513,2]
[387846506,1758924643492,-780.7009092,0.00036533,30]
[387846507,1758924643509,-390.3504546,0.00036533,30]
[387846508,1758924643525,-500.0,0.0003654,30]
[387846509,1758924643542,-168.0,0.00036566,2]
[387846510,1758924643561,-500.0,0.00036591,30]
[387846511,1758924643578,-240.0,0.00036632,120]
[387846512,1758924643594,-241.0,0.00036639,2]
[387846513,1758924643611,-2276.9201383,0.00036708,2]
[387846514,1758924643629,-500.0,0.00036772,30]
[387846515,1758924643645,-240.0,0.00036784,2]
[387846516,1758924643662,-151.0,0.000368,16]
[387846517,1758924643680,-275.08023345,0.00036802,5]
[387846518,1758924643697,-162.2253934,0.00036807,30]
[387846519,1758924643714,-296.8483435,0.00036807,30]
[387846520,1758924643729,-189.1051805,0.00036807,30]
[387846521,1758924643744,-586.1331603,0.00036807,30]
[387846522,1758924643760,-296.8483435,0.00036807,30]
[387846523,1758924643775,-189.1051805,0.00036807,30]
[387846524,1758924643792,-291.5468699,0.00036807,30]
[387846525,1758924643810,-586.3794058,0.00036807,30]
[387846526,1758924643827,-189.1051805,0.00036807,30]
[387846527,1758924643843,-586.3794058,0.00036807,30]
[387846528,1758924643859,-586.3794058,0.00036807,30]
[387846529,1758924643875,-586.3794058,0.00036807,30]
[387846530,1758924643890,-189.1051805,0.00036807,30]
[387846531,1758924643906,-586.3794058,0.00036807,30]
[387846532,1758924643921,-189.1051805,0.00036807,30]
[387846533,1758924643937,-365.2127555,0.00036807,30]
[387846534,1758924643954,-507.7155672,0.00036807,30]
[387846535,1758924643969,-233.71402077,0.00036821,2]
[387846537,1758924644106,-240.0,0.00036825,2]
[387846538,1758924644126,-240.0,0.00036853,7]
[387846539,1758924644137,-691.91053659,0.00036881,7]
[387846540,1758924644148,-240.0,0.00036927,2]
[387846541,1758924644158,-1060.0,0.00036936,2]
[387846542,1758924644168,-168.0,0.0003696,2]
[387846543,1758924644179,-1000.0,0.00037,30]
[387846544,1758924644189,-5000.0,0.00037,50]
[387846545,1758924644200,-19069.9477532,0.00037043,3]
[387846546,1758924644210,-5641.84914595,0.00037043,3]
[387846547,1758924644220,-250.0,0.00037053,2]
[387846548,1758924644230,-210.703,0.00037053,2]
[387846549,1758924644240,-227.233,0.00037053,2]
[387846550,1758924644251,-250.0,0.00037053,2]
[387846551,1758924644262,-262.985,0.00037053,2]
[387846552,1758924644272,-295.0,0.00037053,2]
[387846553,1758924644282,-292.566,0.00037053,2]
[387846554,1758924644293,-991.429,0.00037053,2]
[387846555,1758924644307,-2160.0,0.00037053,2]
[387846556,1758924644317,-6959.35,0.000371,14]
[387846557,1758924644328,-241.0,0.00037153,7]
[387846558,1758924644338,-500.0,0.00037164,30]
[387846559,1758924644348,-368.7224507,0.00037185,2]
[387846560,1758924644359,-517.84346517,0.00037202,3]
[387846561,1758924644369,-2071.37386067,0.00037202,3]
[387846562,1758924644379,-398.59875848,0.00037202,3]
[387846563,1758924644389,-1594.39503394,0.00037202,3]
[387846564,1758924644399,-2358.20756996,0.00037211,120]
[387846565,1758924644408,-999.0,0.0003726,120]
[387846566,1758924644417,-162.2998523,0.00037342,30]
[387846567,1758924644427,-162.2998523,0.00037342,30]
[387846568,1758924644437,-162.2998523,0.00037342,30]
[387846569,1758924644452,-161.5405462,0.00037342,30]
[387846570,1758924644462,-1160.00591283,0.00037473,2]
[387846571,1758924644472,-1160.0,0.00037484,2]
[387846572,1758924644482,-1579.467729,0.000375,26]
[387846573,1758924644492,-823.0,0.00037512,2]
[387846574,1758924644501,-635.0,0.00037549,2]
[387846575,1758924644511,-379.44866789,0.00037563,29]
[387846576,1758924644522,-151.0,0.000376,14]
[387846577,1758924644533,-222.26,0.000378,2]
[387846578,1758924644543,-400.0,0.000379,120]
[387846579,1758924644555,-38139.8955063,0.0003799,3]
[387846580,1758924644565,-11283.6982919,0.0003799,3]
[387846581,1758924644575,-5000.0,0.00038,80]
[387846582,1758924644586,-10221.79294696,0.00038,60]
[387846583,1758924644596,-58876.16084717,0.00038,7]
[387846584,1758924644605,-1500.0,0.00038,26]
[387846585,1758924644615,-1260.0,0.00038032,2]
[387846586,1758924644625,-999.0,0.00038082,120]
[387846587,1758924644635,-180.57188624,0.00038217,30]
[387846588,1758924644646,-150.0,0.00038217,30]
[387846589,1758924644657,-500.0,0.00038332,30]
[387846590,1758924644667,-873.398513,0.00038356,2]
[387846591,1758924644677,-163.57358115,0.00038356,2]
[387846592,1758924644687,-6959.35,0.000384,14]
[387846593,1758924644698,-151.0,0.000384,11]
[387846594,1758924644708,-1360.0,0.0003858,2]
[387846595,1758924644718,-217.18127914,0.0003861,120]
[387846596,1758924644730,-201.82453409,0.0003861,120]
[387846597,1758924644740,-500.0,0.0003863,120]
[387846598,1758924644751,-500.0,0.0003863,120]
[387846599,1758924644761,-500.0,0.0003863,120]
[387846600,1758924644772,-595.85169742,0.0003863,120]
[387846601,1758924644783,-615.82031076,0.000387,120]
[387846602,1758924644793,-307.1761053,0.00038712,30]
[387846603,1758924644804,-1055.32207646,0.00038719,2]
[387846604,1758924644815,-997.61784146,0.00038825,30]
[387846605,1758924644826,-999.0,0.00038904,120]
[387846606,1758924644836,-5000.0,0.00039,60]
[387846607,1758924644846,-6653.8316803,0.00039013,2]
[387846608,1758924644856,-379.44866789,0.00039034,32]
[387846609,1758924644866,-1460.0,0.00039128,2]
[387846610,1758924644876,-151.0,0.000392,19]
[387846611,1758924644886,-500.0,0.00039322,30]
[387846612,1758924644897,-1160.00591283,0.0003934,2]
[387846613,1758924644907,-8093.05795323,0.00039344,2]
[387846614,1758924644916,-5519349.4394752,0.00039363,15]
[387846617,1758924645680,-500.0,0.00029898,2]
[387846618,1758924645690,-500.0,0.00029898,2]
[387846619,1758924645700,-500.0,0.00029898,2]
[387846620,1758924645710,-339.23185605,0.00029898,2]
[387846621,1758924645720,-211081.10634068,0.00039363,15]
[387846622,1758924645744,-14009.16137225,0.00039363,15]
[387846624,1758924646083,-11051.52438362,0.00039363,15]
[387846627,1758924646094,-1056.37817991,0.00039363,15]
[387846633,1758924647758,-137372.46409104,0.00039363,15]
[387846640,1758924651508,-157.29094676,0.00029898,2]
[387846641,1758924680816,417.15472785,0.00025205,2]
[387846657,1758924796571,230.52485681,0.000199,2]
[387846658,1758924797083,230.52485657,0.00022844,2]
[387846659,1758924797337,230.52485657,0.00021372,2]
[387846719,1758924934848,-185.878852,0.00025788,4]
[387846721,1758924937568,-44.64600457,0.00025788,4]
[387846736,1758924969161,211.15910368,0.000199,2]
[387846737,1758924969524,211.15910344,0.00022844,2]
[387846738,1758924969633,211.15910344,0.00024316,2]
[387846739,1758924969826,211.15910344,0.00021372,2]
[387846759,1758925052415,160.0,0.00025205,2]
[387846770,1758925148450,361.58862644,0.000199,2]
[387846771,1758925148490,361.58862637,0.00022844,2]
[387846772,1758925148687,361.58862637,0.00021372,2]
[387846773,1758925149476,361.58862637,0.00024316,2]
[387846775,1758925151862,-198.44738314,0.00025788,4]
[387846776,1758925153872,-163.14124323,0.00025788,4]
[387846783,1758925268164,1376.556,0.0002772,120]
[387846795,1758925319362,295.13370646,0.000199,2]
[387846796,1758925319675,295.13370646,0.00022949,2]
[387846829,1758925489872,262.89556802,0.000199,2]
[387846831,1758925490272,262.89556783,0.00021372,2]
[387846832,1758925490694,262.89556783,0.00024316,2]
[387846834,1758925492489,-161.86580021,0.00025788,4]
[387846835,1758925495551,-101.02976762,0.00025788,4]
[387846900,1758925659647,385.80920134,0.000199,2]
[387846901,1758925660055,385.80920134,0.00022949,2]
[387846904,1758925668436,10000.01,0.00018,2]
[387846905,1758925668459,10000.01,0.00018,2]
[387846906,1758925668482,4581.08974178,0.00018,2]
[387846907,1758925678683,5000.0,0.00025205,2]
[387846909,1758925686706,418.92025822,0.00025205,2]
[387846910,1758925686728,4581.07974178,0.00025205,2]
[387846916,1758925702641,5000.0,0.00025205,2]
[387846918,1758925710527,418.93025822,0.00025205,2]
[387846919,1758925710551,4581.06974178,0.00025205,2]
[387846920,1758925714852,688.78313646,0.00024,2]
[387846922,1758925718046,556.61591041,0.00022,7]
[387846923,1758925719637,163.31232933,0.00024,2]
[387846924,1758925721363,245.85639971,0.00023,2]
[387846925,1758925721508,1007.12820108,0.000215,2]
[387846926,1758925721745,458.70555099,0.00024,2]
[387846927,1758925721867,1000.0,0.000235,2]
[387846928,1758925723718,260.11277851,0.00015,2]
[387846929,1758925725911,1038.42595173,0.00025205,2]
[387846930,1758925725936,3961.57404827,0.00025205,2]
[387846931,1758925733733,5000.0,0.00025205,2]
[387846932,1758925741704,1038.43595173,0.00025205,2]
[387846933,1758925741726,2682.49173574,0.00025205,2]
[387846935,1758925749670,5000.0,0.00025205,2]
[387846936,1758925757879,2317.51826426,0.00025205,2]
[387846937,1758925757903,2682.48173574,0.00025205,2]
[387846938,1758925763292,-385.80920134,0.00025998,4]
[387846939,1758925763312,-200.0,0.0002654,14]
[387846940,1758925763332,-97.18517014,0.00027968,2]
[387846941,1758925765166,-282.9667533,0.00027622,2]
[387846944,1758925773146,5000.0,0.00025205,2]
[387846947,1758925780957,790.29634626,0.00025205,2]
[387846949,1758925795191,300.0,0.000252,2]
[387846950,1758925797034,1227.231918,0.00025205,2]
[387846951,1758925797062,3772.768082,0.00025205,2]
[387846952,1758925819976,5000.0,0.00025205,2]
[387846954,1758925827936,1227.241918,0.00025205,2]
[387846955,1758925827959,3772.758082,0.00025205,2]
[387846956,1758925829629,272.38197086,0.000199,2]
[387846957,1758925829681,272.3819706,0.00021372,2]
[387846958,1758925829874,272.3819706,0.00022844,2]
[387846959,1758925830087,272.3819706,0.00024316,2]
[387847011,1758925831968,-253.66323835,0.00025788,4]
[387847015,1758925831993,-18.71873225,0.00025788,4]
[387847017,1758925832007,-355.0,0.00026364,2]
[387847020,1758925832021,-272.3819706,0.00027259,7]
[387847022,1758925832036,-2019.63739943,0.00027622,2]
[387847025,1758925832051,-1200.0,0.00027967,2]
[387847027,1758925832065,-3640.46332986,0.00027968,2]
[387847030,1758925832080,-153.34000654,0.00028301,2]
[387847032,1758925832096,-330.548631,0.00028401,2]
[387847035,1758925832110,-300.0,0.00028406,2]
[387847037,1758925832124,-1000.0,0.00028408,30]
[387847040,1758925832140,-1200.0,0.00028728,2]
[387847042,1758925832154,-272.3819706,0.00028731,10]
[387847045,1758925832168,-16050.49422797,0.00029,3]
[387847047,1758925832183,-24431.39369677,0.00029047,2]
[387847050,1758925832197,-10000.0,0.00029807,2]
[387847052,1758925832211,-480.0,0.00029996,7]
[387847054,1758925832231,-160.0,0.00030131,2]
[387847057,1758925832251,-196.81,0.00030131,25]
[387847059,1758925832269,-272.3819706,0.00030203,13]
[387847062,1758925832283,-160.0,0.00030235,2]
[387847064,1758925832297,-160.0,0.00030235,2]
[387847067,1758925832311,-1680.0,0.00030338,2]